bitfinex/quotes_BTCUSD_20240821
["timestamp","ask_amount","ask_price","bid_price","bid_amount"]
[1724277528298,0.02563552,61268.0,61267.0,0.96019309]
[1724277528516,0.02563552,61268.0,61267.0,1.28663309]
[1724277529446,0.02563552,61268.0,61267.0,1.40083309]
[1724277531147,0.02563552,61268.0,61267.0,1.28663309]
[1724277534483,0.02563552,61268.0,61267.0,0.96019309]
[1724277535090,0.02563552,61268.0,61267.0,0.63375309]
[1724277535222,0.04863552,61268.0,61267.0,0.16881309]
[1724277535877,0.04863552,61268.0,61267.0,0.49525309]
[1724277539362,0.04863552,61268.0,61267.0,0.63525309]
[1724277539775,0.02563552,61268.0,61267.0,0.96169309]
[1724277541677,0.02563552,61268.0,61267.0,1.28813309]
[1724277550806,0.02563552,61268.0,61267.0,1.61457309]
[1724277551885,0.02563552,61268.0,61267.0,1.61357309]
[1724277552092,0.02563552,61268.0,61267.0,1.61257309]
[1724277552299,0.02763552,61268.0,61267.0,1.61757309]
[1724277552742,0.02763552,61268.0,61267.0,1.78157607]
[1724277553120,0.02763552,61268.0,61267.0,1.88257607]
[1724277553325,0.02763552,61268.0,61267.0,7.30959919]
[1724277553527,0.02763552,61268.0,61267.0,7.25535879]
[1724277553754,0.02763552,61268.0,61267.0,7.26767244]
[1724277554129,0.001826,61268.0,61267.0,7.38613024]
[1724277554329,0.49411754,61304.0,61297.0,0.16613199]
[1724277554529,0.49411754,61304.0,61297.0,1.07129199]
[1724277554707,0.001826,61304.0,61297.0,1.39757199]
[1724277554915,0.001826,61304.0,61297.0,1.39458]
[1724277555132,0.001826,61304.0,61297.0,1.39757199]
[1724277555517,0.001826,61304.0,61297.0,1.88785497]
[1724277555950,0.001826,61304.0,61297.0,1.89385497]
[1724277555951,0.001826,61298.0,61297.0,1.89385497]
[1724277556172,0.001826,61298.0,61297.0,1.89086298]
[1724277556361,0.001826,61298.0,61297.0,1.9407634]
[1724277556560,0.001826,61298.0,61297.0,1.9437634]
[1724277556900,0.001826,61298.0,61297.0,1.9487634]
[1724277557708,0.001826,61298.0,61297.0,2.5477634]
[1724277557902,0.001826,61298.0,61297.0,2.5447634]
[1724277558532,0.001826,61298.0,61297.0,3.8045634]
[1724277558732,0.001826,61298.0,61297.0,3.8665634]
[1724277558935,0.001826,61298.0,61297.0,2.61797298]
[1724277559475,0.001826,61298.0,61297.0,2.61997298]
[1724277560794,0.001826,61304.0,61303.0,1.28945999]
[1724277561033,0.001826,61304.0,61303.0,1.99891097]
[1724277561218,0.001826,61304.0,61303.0,5.9348194]
[1724277561411,0.001826,61304.0,61303.0,6.0530674]
[1724277561622,0.001826,61304.0,61303.0,5.3040674]
[1724277561773,0.001826,61304.0,61303.0,5.6303154]
[1724277562375,0.002826,61304.0,61303.0,5.6363154]
[1724277563616,0.001826,61304.0,61303.0,5.6303154]
[1724277563817,0.001826,61304.0,61303.0,5.6543154]
[1724277563818,0.003826,61304.0,61303.0,5.6543154]
[1724277565312,0.000826,61322.0,61321.0,1.14452399]
[1724277565515,0.000826,61322.0,61321.0,1.25872399]
[1724277565801,0.000826,61322.0,61321.0,1.30821575]
[1724277566202,0.000826,61322.0,61321.0,1.14452399]
[1724277566359,0.000826,61322.0,61321.0,1.25872399]
[1724277566539,0.141426,61322.0,61321.0,0.49821999]
[1724277566744,0.164426,61322.0,61321.0,0.49821999]
[1724277567643,0.164426,61322.0,61321.0,0.00899199]
[1724277567873,0.327499,61322.0,61321.0,0.006]
[1724277568093,0.164426,61322.0,61321.0,0.011]
[1724277568293,0.327499,61322.0,61321.0,0.011]
[1724277568710,0.327499,61322.0,61321.0,0.006]
[1724277568892,0.147,61321.0,61318.0,0.163083]
[1724277569088,0.0806,61320.0,61318.0,0.163083]
[1724277569469,0.023,61319.0,61318.0,0.163083]
[1724277569691,0.1036,61319.0,61318.0,0.163083]
[1724277571354,0.1036,61319.0,61318.0,0.165083]
[1724277571577,0.1036,61319.0,61318.0,0.002]
[1724277571803,0.1036,61319.0,61318.0,0.004]
[1724277572239,0.327181,61319.0,61318.0,0.004]
[1724277573015,0.327181,61319.0,61318.0,0.002]
[1724277573193,0.239384,61318.0,61315.0,0.163092]
[1724277573372,0.023,61317.0,61315.0,0.163092]
[1724277574233,0.0763,61316.0,61315.0,0.163092]
[1724277574405,0.0993,61316.0,61315.0,0.163092]
[1724277574764,0.0993,61316.0,61314.0,0.163094]
[1724277575018,0.023,61315.0,61314.0,0.163094]
[1724277575961,0.023,61315.0,61314.0,0.164094]
[1724277576169,0.023,61315.0,61314.0,0.163094]
[1724277576390,0.023,61315.0,61314.0,0.165094]
[1724277576795,0.0825,61316.0,61314.0,0.002]
[1724277577025,0.000826,61322.0,61321.0,0.164076]
[1724277577193,0.000826,61322.0,61321.0,0.490228]
[1724277577767,0.000826,61322.0,61321.0,0.49221999]
[1724277578517,0.000826,61322.0,61321.0,0.81837199]
[1724277579331,0.000826,61322.0,61321.0,0.81538]
[1724277579552,0.005826,61322.0,61321.0,0.81538]
[1724277579747,0.005826,61322.0,61321.0,0.81837199]
[1724277579953,0.010826,61322.0,61321.0,0.81937199]
[1724277580525,0.010826,61322.0,61321.0,1.14552399]
[1724277580786,0.005826,61322.0,61321.0,1.14452399]
[1724277580956,0.006826,61322.0,61321.0,1.15052399]
[1724277581409,0.001826,61322.0,61321.0,1.15052399]
[1724277581609,0.000826,61322.0,61321.0,1.15052399]
[1724277582021,0.000826,61322.0,61321.0,1.14452399]
[1724277582344,0.001826,61322.0,61321.0,1.72867897]
[1724277583423,0.001826,61322.0,61321.0,1.72967897]
[1724277583625,0.001826,61322.0,61321.0,1.72668698]
[1724277583837,0.002826,61322.0,61321.0,1.73868698]
[1724277584038,0.002826,61322.0,61321.0,1.74167897]
[1724277584650,0.002826,61322.0,61321.0,1.79117073]
[1724277584851,0.002826,61322.0,61321.0,1.41452697]
[1724277586708,0.002826,61322.0,61321.0,1.16852399]
[1724277588586,0.002826,61322.0,61321.0,0.84237199]
[1724277589332,0.002826,61322.0,61321.0,1.16852399]
[1724277589957,0.002826,61322.0,61321.0,1.33252697]
[1724277590360,0.002826,61322.0,61321.0,0.84237199]
[1724277592990,0.002826,61322.0,61321.0,1.16852399]
[1724277594001,0.002826,61322.0,61321.0,1.31412399]
[1724277594589,0.002826,61322.0,61321.0,1.42822399]
[1724277595201,0.002826,61322.0,61321.0,1.59222697]
[1724277601299,0.002826,61322.0,61321.0,1.50992697]
[1724277605076,0.002826,61322.0,61321.0,1.39582697]
[1724277605280,0.002826,61322.0,61321.0,1.18377497]
[1724277605718,0.002826,61322.0,61321.0,1.50992697]
[1724277605935,0.002826,61322.0,61321.0,0.84237199]
[1724277606199,0.142026,61322.0,61321.0,0.84237199]
[1724277606741,0.468173,61322.0,61321.0,0.025]
[1724277606938,0.654246,61322.0,61321.0,0.024]
[1724277607343,0.328099,61322.0,61321.0,0.025]
[1724277607664,0.164026,61322.0,61321.0,0.01499199]
[1724277607842,0.164026,61322.0,61321.0,0.01999199]
[1724277608250,0.164026,61322.0,61321.0,0.180076]
[1724277608453,0.164026,61322.0,61321.0,0.013]
[1724277608831,0.163026,61322.0,61321.0,0.006]
[1724277609226,0.164026,61322.0,61321.0,0.012]
[1724277609491,0.15807491,61322.0,61321.0,0.50321999]
[1724277609909,0.141026,61322.0,61321.0,0.50321999]
[1724277611119,0.141026,61322.0,61321.0,0.82937199]
[1724277611470,0.141026,61322.0,61321.0,0.50321999]
[1724277611686,0.080926,61322.0,61321.0,0.50321999]
[1724277611920,0.001826,61322.0,61321.0,0.50321999]
[1724277613588,0.001826,61322.0,61321.0,0.82937199]
[1724277614598,0.171313,61330.0,61329.0,0.001]
[1724277614885,0.194313,61330.0,61329.0,0.00299199]
[1724277615291,0.03126,61330.0,61328.0,0.10330599]
[1724277615483,0.03126,61330.0,61329.0,0.001]
[1724277615686,0.03426,61330.0,61329.0,0.00299199]
[1724277615887,0.03726,61330.0,61329.0,0.00299199]
[1724277616446,0.03426,61330.0,61329.0,0.00299199]
[1724277617029,0.03526,61330.0,61329.0,0.00299199]
[1724277617232,0.03226,61330.0,61329.0,0.00299199]
[1724277617434,0.03326,61330.0,61329.0,0.00299199]
[1724277617959,0.17386,61330.0,61329.0,0.00299199]
[1724277618576,0.17286,61330.0,61329.0,0.00299199]
[1724277619637,0.17286,61330.0,61329.0,0.16604599]
[1724277620610,0.00826,61330.0,61329.0,0.880972]
[1724277620823,0.00826,61330.0,61329.0,0.88396399]
[1724277621356,0.00826,61330.0,61329.0,1.20907299]
[1724277621558,0.00826,61330.0,61329.0,1.77528497]
[1724277621691,0.00826,61330.0,61329.0,1.77828497]
[1724277621888,0.00826,61330.0,61329.0,1.78128497]
[1724277622092,0.00826,61330.0,61329.0,1.77928497]
[1724277622299,0.00826,61330.0,61329.0,2.11039397]
[1724277622482,0.00826,61330.0,61329.0,2.10939397]
[1724277622679,0.00826,61330.0,61329.0,2.57092063]
[1724277622885,0.00826,61330.0,61329.0,2.59102136]
[1724277623088,0.00926,61330.0,61329.0,2.68490684]
[1724277623323,0.00826,61330.0,61329.0,2.57802136]
[1724277623492,0.00826,61330.0,61329.0,2.58102136]
[1724277623697,0.00926,61330.0,61329.0,2.59502136]
[1724277624141,0.00926,61330.0,61329.0,2.59202136]
[1724277624409,0.00926,61330.0,61329.0,2.28908968]
[1724277624410,0.00826,61330.0,61329.0,2.28908968]
[1724277624585,0.00926,61330.0,61329.0,2.973877]
[1724277624991,0.00826,61330.0,61329.0,2.959877]
[1724277625224,0.00826,61330.0,61329.0,2.9597757]
[1724277625344,0.00826,61330.0,61329.0,8.0097757]
[1724277625544,0.00826,61330.0,61329.0,8.00977252]
[1724277626207,0.0627,61353.0,61352.0,0.162993]
[1724277626406,0.0627,61353.0,61352.0,0.16598499]
[1724277626620,0.0627,61353.0,61352.0,0.49197199]
[1724277627499,0.0637,61353.0,61352.0,0.49197199]
[1724277627706,0.001,61353.0,61352.0,0.49197199]
[1724277627913,0.002,61353.0,61352.0,0.49197199]
[1724277628993,0.002,61353.0,61352.0,0.81795899]
[1724277629194,0.002,61353.0,61352.0,0.815967]
[1724277630865,0.002,61353.0,61352.0,1.141954]
[1724277632163,0.002,61353.0,61352.0,1.14394599]
[1724277632414,0.002,61353.0,61352.0,1.20484599]
[1724277633643,0.002,61353.0,61352.0,1.44964897]
[1724277633874,0.002,61353.0,61352.0,1.77563597]
[1724277634271,0.001,61353.0,61352.0,1.77563597]
[1724277634467,0.001,61353.0,61352.0,1.77663597]
[1724277634897,0.001,61353.0,61352.0,1.80663597]
[1724277635346,0.001,61353.0,61352.0,1.77563597]
[1724277635792,0.001,61353.0,61352.0,1.77663597]
[1724277636007,0.00826,61360.0,61359.0,1.22461699]
[1724277636413,0.00826,61360.0,61359.0,1.28731699]
[1724277636790,0.00826,61360.0,61359.0,2.06226997]
[1724277637370,0.00926,61360.0,61359.0,2.07626997]
[1724277637573,0.01026,61360.0,61359.0,2.09026997]
[1724277637788,0.00926,61360.0,61359.0,2.07926997]
[1724277638225,0.00926,61360.0,61359.0,4.07126997]
[1724277638554,0.00926,61360.0,61359.0,3.29521997]
[1724277638767,0.00926,61360.0,61359.0,3.34671173]
[1724277638977,0.00826,61360.0,61359.0,3.33471173]
[1724277639184,0.01026,61360.0,61359.0,3.36271173]
[1724277639395,0.00926,61360.0,61359.0,3.34871173]
[1724277639857,0.00926,61360.0,61359.0,2.58671173]
[1724277640061,0.00926,61360.0,61359.0,2.91266173]
[1724277640269,0.00926,61360.0,61359.0,2.92666173]
[1724277640270,0.001001,61360.0,61359.0,2.92666173]
[1724277640475,1e-06,61360.0,61359.0,2.93664289]
[1724277640678,0.00826,61366.0,61365.0,1.80054099]
[1724277640903,0.00826,61366.0,61365.0,7.54614397]
[1724277641108,0.00826,61366.0,61365.0,7.59563573]
[1724277641756,0.00826,61366.0,61365.0,1.73362597]
[1724277641959,0.00826,61366.0,61365.0,1.40770797]
[1724277642368,0.00926,61366.0,61365.0,1.42170797]
[1724277642577,0.01026,61366.0,61365.0,1.43570797]
[1724277642856,0.08976,61366.0,61365.0,0.84578699]
[1724277643264,0.08976,61366.0,61365.0,0.028]
[1724277643486,0.08976,61366.0,61365.0,0.191959]
[1724277643717,0.08776,61366.0,61365.0,0.163959]
[1724277643915,0.08876,61366.0,61365.0,0.177959]
[1724277644144,0.08976,61366.0,61365.0,0.517877]
[1724277644360,0.275716,61366.0,61365.0,0.029]
[1724277644573,0.275716,61366.0,61365.0,0.028]
[1724277644781,0.275716,61366.0,61365.0,0.029]
[1724277645187,0.275716,61366.0,61365.0,0.015]
[1724277645188,0.274716,61366.0,61365.0,0.015]
[1724277645390,0.274716,61366.0,61365.0,0.01899199]
[1724277645567,0.273716,61366.0,61365.0,0.00499199]
[1724277645704,0.273716,61366.0,61365.0,0.005]
[1724277645928,0.273716,61366.0,61365.0,0.003]
[1724277646122,0.273716,61366.0,61361.0,0.162969]
[1724277646123,0.162959,61365.0,61361.0,0.162969]
[1724277646420,0.162959,61365.0,61360.0,0.00299199]
[1724277646421,0.023,61364.0,61362.0,0.162967]
[1724277646759,0.023,61364.0,61362.0,0.163967]
[1724277646958,0.162962,61364.0,61359.0,0.325948]
[1724277647184,0.023,61365.0,61361.0,0.162969]
[1724277647185,0.18596,61365.0,61361.0,0.162969]
[1724277647999,0.18596,61365.0,61359.0,0.488921]
[1724277648397,0.162962,61364.0,61360.0,0.162971]
[1724277648597,0.0816,61363.0,61358.0,0.00299199]
[1724277648772,0.162968,61362.0,61358.0,0.00299199]
[1724277649242,0.16297,61361.0,61358.0,0.00299199]
[1724277649470,0.16297,61361.0,61343.0,0.326035]
[1724277649471,0.1674,61360.0,61353.0,0.32598]
[1724277649699,0.1674,61360.0,61354.0,0.162986]
[1724277649933,0.162976,61359.0,61358.0,0.001]
[1724277650127,0.185976,61359.0,61358.0,0.001]
[1724277650347,0.185976,61359.0,61358.0,0.003]
[1724277650563,0.185976,61359.0,61355.0,0.162985]
[1724277651016,0.185976,61359.0,61358.0,0.00299199]
[1724277651249,0.1454,61360.0,61358.0,0.162977]
[1724277651472,0.1454,61360.0,61359.0,0.00299199]
[1724277651684,0.1454,61360.0,61359.0,0.16596699]
[1724277651898,0.001,61360.0,61359.0,0.162975]
[1724277652107,0.023,61362.0,61360.0,0.00299199]
[1724277652317,0.023,61362.0,61359.0,0.162975]
[1724277652830,0.001,61360.0,61359.0,0.162975]
[1724277653442,0.023,61362.0,61359.0,0.162975]
[1724277653642,0.023,61362.0,61360.0,0.162971]
[1724277653898,0.023,61362.0,61361.0,0.162969]
[1724277654106,0.0755,61363.0,61361.0,0.162969]
[1724277655155,0.235537,61364.0,61361.0,0.162969]
[1724277655376,0.023,61363.0,61361.0,0.162969]
[1724277655763,0.023,61363.0,61362.0,0.001]
[1724277655905,0.023,61363.0,61361.0,0.162968]
[1724277656343,0.023,61363.0,61361.0,0.16595999]
[1724277656936,0.009075,61364.0,61363.0,0.238464]
[1724277657065,0.009075,61364.0,61363.0,0.565393]
[1724277657474,0.009075,61364.0,61363.0,0.955922]
[1724277657692,0.009075,61364.0,61363.0,1.281851]
[1724277658386,0.009075,61364.0,61363.0,1.28484299]
[1724277658816,0.009075,61364.0,61363.0,1.281851]
[1724277659064,0.009075,61364.0,61363.0,1.28484299]
[1724277659377,0.010075,61364.0,61363.0,1.29184299]
[1724277659531,0.011075,61364.0,61363.0,1.29884299]
[1724277659935,0.010075,61364.0,61363.0,1.29184299]
[1724277660310,0.010075,61364.0,61363.0,1.28484299]
[1724277660311,0.009075,61364.0,61363.0,1.28484299]
[1724277660899,0.009075,61364.0,61363.0,1.77477497]
[1724277661318,0.010075,61364.0,61363.0,1.78777497]
[1724277661968,0.011075,61364.0,61363.0,1.79977497]
[1724277662381,0.011075,61364.0,61363.0,3.38650397]
[1724277662761,0.02015,61364.0,61363.0,3.38650397]
[1724277664188,0.02015,61364.0,61363.0,3.48850397]
[1724277664363,0.000824,61365.0,61364.0,3.18241799]
[1724277664567,0.000824,61365.0,61364.0,6.25842097]
[1724277664800,0.000824,61365.0,61364.0,5.31642097]
[1724277664999,0.000824,61365.0,61364.0,4.61642097]
[1724277665195,0.000824,61365.0,61364.0,4.60142097]
[1724277665422,0.000824,61365.0,61364.0,4.44742097]
[1724277665557,0.001824,61365.0,61364.0,4.31642097]
[1724277665758,0.001824,61365.0,61364.0,4.11442097]
[1724277666013,0.002824,61365.0,61364.0,4.12842097]
[1724277666252,0.002824,61365.0,61364.0,3.80049797]
[1724277666433,0.002824,61365.0,61364.0,3.14649797]
[1724277666638,0.002824,61365.0,61364.0,5.50442097]
[1724277666843,0.002824,61365.0,61364.0,5.50642097]
[1724277667307,0.002824,61365.0,61364.0,5.50442097]
[1724277667511,0.002824,61365.0,61364.0,5.50142898]
[1724277667682,0.002824,61365.0,61364.0,5.50442097]
[1724277668126,0.002824,61365.0,61364.0,5.50642097]
[1724277668736,0.002824,61365.0,61364.0,5.55634837]
[1724277672522,0.002824,61365.0,61364.0,5.55834837]
[1724277672729,0.002824,61365.0,61364.0,3.19542537]
[1724277674541,0.00826,61366.0,61365.0,2.38053099]
[1724277674805,0.00826,61366.0,61365.0,2.64453397]
[1724277675241,0.00826,61366.0,61360.0,0.2859086]
[1724277675242,0.45726298,61366.0,61353.0,0.32598]
[1724277675451,1.95675388,61330.0,61322.0,0.01010134]
[1724277675660,0.164108,61309.0,61308.0,0.7]
[1724277675868,0.001,61307.0,61290.0,0.28704051]
[1724277676071,0.164113,61307.0,61290.0,0.28704051]
[1724277676282,0.977467,61307.0,61290.0,0.28704051]
[1724277676906,0.816592,61305.0,61278.0,1.2608]
[1724277677084,0.939592,61305.0,61278.0,1.2608]
[1724277677463,0.939592,61305.0,61279.0,0.001]
[1724277677464,0.613355,61305.0,61279.0,0.001]
[1724277677664,0.0609,61307.0,61299.0,0.00325745]
[1724277677880,0.003,61309.0,61300.0,0.00325822]
[1724277678081,0.003,61309.0,61305.0,0.00325821]
[1724277678280,0.001,61313.0,61305.0,0.00325821]
[1724277679222,0.004,61309.0,61305.0,0.00325821]
[1724277679565,0.0086077,61313.0,61305.0,0.00425821]
[1724277679841,0.0166077,61313.0,61305.0,0.00525821]
[1724277680841,0.0086077,61313.0,61305.0,0.00425821]
[1724277681060,0.004,61309.0,61305.0,0.00425821]
[1724277681293,0.004,61309.0,61305.0,0.16826119]
[1724277681713,0.004,61309.0,61305.0,0.16726119]
[1724277682098,0.0006077,61319.0,61305.0,0.16726119]
[1724277682292,0.008,61313.0,61305.0,0.16826119]
[1724277682474,0.004,61309.0,61306.0,2.28]
[1724277682853,0.008,61313.0,61307.0,0.0032581]
[1724277683809,0.0006077,61319.0,61307.0,0.0032581]
[1724277684576,0.0006077,61319.0,61309.0,0.02557131]
[1724277684976,0.0106077,61319.0,61309.0,0.0288293]
[1724277685381,0.1736887,61319.0,61309.0,0.0288293]
[1724277685780,0.1636887,61319.0,61309.0,0.0288293]
[1724277685975,0.1736887,61319.0,61309.0,0.0288293]
[1724277686183,0.163084,61318.0,61309.0,0.02557131]
[1724277687537,0.163087,61317.0,61309.0,0.02557131]
[1724277687736,0.163087,61317.0,61309.0,0.02657131]
[1724277687952,0.326185,61315.0,61309.0,0.02657131]
[1724277688151,0.163098,61313.0,61309.0,0.002]
[1724277688359,0.163098,61313.0,61308.0,0.076]
[1724277688572,0.326185,61315.0,61308.0,0.076]
[1724277688790,0.163096,61314.0,61309.0,0.002]
[1724277688997,0.163096,61314.0,61309.0,0.001]
[1724277689231,0.163096,61314.0,61308.0,0.076]
[1724277689431,0.1636987,61316.0,61308.0,0.076]
[1724277689638,0.163092,61315.0,61308.0,0.076]
[1724277689842,0.002,61313.0,61308.0,0.076]
[1724277690050,0.00193475,61313.0,61308.0,0.076]
[1724277691548,0.002,61313.0,61308.0,0.076]
[1724277692337,0.004,61313.0,61308.0,0.076]
[1724277694355,0.004,61313.0,61308.0,0.239109]
[1724277694675,0.004,61313.0,61309.0,0.16400298]
[1724277694935,0.004,61313.0,61312.0,0.4893]
[1724277695508,0.002,61313.0,61312.0,0.4893]
[1724277695714,0.000826,61322.0,61314.0,0.159094]
[1724277696061,0.000826,61322.0,61312.0,0.3262]
[1724277696206,0.000826,61322.0,61315.0,0.16309]
[1724277697466,0.000826,61322.0,61314.0,0.163094]
[1724277697673,0.012826,61322.0,61315.0,0.001]
[1724277698106,0.024826,61322.0,61315.0,0.002]
[1724277698234,0.012826,61322.0,61315.0,0.001]
[1724277698433,0.000826,61322.0,61313.0,0.163096]
[1724277698633,0.024826,61322.0,61314.0,0.002]
[1724277698868,0.012826,61322.0,61314.0,0.001]
[1724277699047,0.012826,61322.0,61314.0,0.164094]
[1724277699467,0.012826,61322.0,61314.0,0.001]
[1724277699699,0.012826,61322.0,61315.0,0.163091]
[1724277699899,0.02987491,61322.0,61315.0,0.163091]
[1724277700132,0.02987491,61322.0,61314.0,0.327186]
[1724277700416,0.02987491,61322.0,61315.0,0.001]
[1724277700868,0.04187491,61322.0,61315.0,0.002]
[1724277701353,0.02987491,61322.0,61315.0,0.001]
[1724277701486,0.04187491,61322.0,61315.0,0.001]
[1724277701686,0.01787491,61322.0,61312.0,0.2852]
[1724277701916,0.01787491,61322.0,61314.0,0.001]
[1724277702134,0.04187491,61322.0,61315.0,0.001]
[1724277703511,0.02987491,61322.0,61315.0,0.001]
[1724277703721,0.20494891,61322.0,61315.0,0.001]
[1724277703897,0.04187491,61322.0,61315.0,0.001]
[1724277704096,0.20494791,61322.0,61315.0,0.001]
[1724277704407,0.19294791,61322.0,61315.0,0.001]
[1724277704611,0.0006077,61320.0,61315.0,0.002]
[1724277705658,0.1636867,61320.0,61315.0,0.002]
[1724277706499,0.1636867,61320.0,61310.0,0.163102]
[1724277706684,0.1636867,61320.0,61315.0,0.001]
[1724277706859,0.1826867,61320.0,61315.0,0.002]
[1724277707298,0.1726867,61320.0,61315.0,0.00013302]
[1724277707722,0.0196077,61320.0,61315.0,0.00013302]
[1724277708151,0.0096077,61320.0,61315.0,0.00013302]
[1724277708378,0.1636897,61319.0,61315.0,0.00013302]
[1724277708533,0.4898757,61316.0,61315.0,0.00113302]
[1724277708710,0.0006077,61316.0,61315.0,0.00113302]
[1724277709118,0.1636967,61316.0,61315.0,0.00113302]
[1724277709666,0.1636967,61316.0,61308.0,0.0769086]
[1724277709667,0.00018836,61316.0,61308.0,0.0769086]
[1724277709807,0.00518836,61316.0,61308.0,0.0769086]
[1724277710162,0.00518836,61316.0,61315.0,0.001]
[1724277710541,0.00018836,61316.0,61308.0,0.0769086]
[1724277710751,0.00018836,61310.0,61308.0,0.0009086]
[1724277711274,0.48951236,61309.0,61308.0,0.0009086]
[1724277712493,0.16329636,61309.0,61308.0,0.0009086]
[1724277713051,0.48951236,61309.0,61308.0,0.0039086]
[1724277713403,0.48951236,61309.0,61308.0,0.0019086]
[1724277713404,0.51251236,61309.0,61308.0,0.0019086]
[1724277713552,0.51251236,61309.0,61308.0,0.0009086]
[1724277713758,0.51251236,61309.0,61308.0,0.0039086]
[1724277713954,0.51251236,61309.0,61308.0,0.0029086]
[1724277714385,0.51251236,61309.0,61308.0,0.0009086]
[1724277714386,0.51551236,61309.0,61308.0,0.0009086]
[1724277714755,0.51851236,61309.0,61308.0,0.0009086]
[1724277715140,0.53554645,61309.0,61308.0,0.0009086]
[1724277715867,0.53954645,61309.0,61308.0,0.0009086]
[1724277716448,0.02703409,61309.0,61308.0,0.0009086]
[1724277717061,0.02703409,61309.0,61308.0,0.2554186]
[1724277717264,0.02703409,61309.0,61308.0,0.8668396]
[1724277717488,0.02403409,61309.0,61308.0,0.8668396]
[1724277717708,0.02103409,61309.0,61308.0,0.8668396]
[1724277718132,0.02103409,61309.0,61308.0,1.2678606]
[1724277718506,0.02103409,61309.0,61308.0,1.2688606]
[1724277719090,0.02103409,61309.0,61308.0,6.80908458]
[1724277719467,0.004,61309.0,61308.0,6.80908458]
[1724277719669,0.004,61309.0,61308.0,5.30408458]
[1724277719904,0.004,61309.0,61308.0,5.35257975]
[1724277720079,0.004,61309.0,61308.0,5.35757975]
[1724277720565,0.004,61309.0,61308.0,5.30908458]
[1724277720766,0.004,61309.0,61308.0,5.31706925]
[1724277721725,0.004,61309.0,61308.0,5.31306925]
[1724277722079,0.004,61309.0,61308.0,6.57286925]
[1724277723916,0.004,61309.0,61308.0,6.62136702]
[1724277724121,0.004,61309.0,61308.0,6.57286925]
[1724277724322,0.004,61309.0,61308.0,6.62136702]
[1724277724617,0.004,61309.0,61308.0,6.57286925]
[1724277726144,0.004,61309.0,61308.0,5.44786925]
[1724277726322,0.004,61309.0,61308.0,5.12186925]
[1724277726499,0.004,61309.0,61308.0,5.11086925]
[1724277726718,0.004,61309.0,61308.0,4.83586925]
[1724277726924,0.004,61309.0,61308.0,3.91286925]
[1724277728084,0.004,61309.0,61308.0,2.65306925]
[1724277729238,0.004,61309.0,61308.0,2.57506925]
[1724277729442,0.004,61309.0,61308.0,2.42306925]
[1724277730276,0.004,61309.0,61308.0,3.11006925]
[1724277730453,0.004,61309.0,61308.0,3.11097785]
[1724277730823,0.004,61309.0,61308.0,2.96497785]
[1724277732875,0.004,61309.0,61308.0,2.42697785]
[1724277733598,0.004,61309.0,61308.0,2.71219885]
[1724277733921,0.004,61309.0,61308.0,2.81219885]
[1724277734142,0.004,61309.0,61308.0,2.81419885]
[1724277734333,0.004,61309.0,61308.0,2.48397785]
[1724277735101,0.004,61309.0,61308.0,2.48197785]
[1724277735305,0.005,61309.0,61308.0,2.48797785]
[1724277736088,0.004,61309.0,61308.0,2.47897785]
[1724277736312,0.005,61309.0,61308.0,2.48497785]
[1724277736731,0.004,61309.0,61308.0,2.47897785]
[1724277736927,0.006,61309.0,61308.0,2.50997785]
[1724277738116,0.006,61309.0,61308.0,2.50597785]
[1724277738316,0.006,61309.0,61308.0,2.38597785]
[1724277738519,0.005,61309.0,61308.0,2.37297785]
[1724277738946,0.006,61309.0,61308.0,2.38697785]
[1724277739505,0.006,61309.0,61308.0,1.43944527]
[1724277739716,0.006,61309.0,61308.0,0.6092396]
[1724277741509,0.006,61309.0,61308.0,0.1920186]
[1724277741744,0.006,61309.0,61308.0,0.0289086]
[1724277741914,0.006,61309.0,61308.0,0.0249086]
[1724277742136,0.006,61309.0,61308.0,0.1880186]
[1724277742342,0.006,61309.0,61308.0,0.1840186]
[1724277742542,0.006,61309.0,61308.0,0.1849272]
[1724277742754,0.006,61309.0,61308.0,0.1809272]
[1724277742881,0.006826,61309.0,61308.0,0.1769272]
[1724277743087,0.006826,61309.0,61308.0,0.1729272]
[1724277743291,0.006826,61309.0,61308.0,0.1689272]
[1724277743714,0.006826,61309.0,61308.0,0.1649272]
[1724277744116,0.006826,61309.0,61308.0,0.1609272]
[1724277744341,0.006826,61309.0,61308.0,0.0009086]
[1724277744487,0.0030914,61308.0,61305.0,0.2852]
[1724277744689,0.00018836,61305.0,61304.0,0.0009075]
[1724277745351,0.02318836,61305.0,61304.0,0.0009075]
[1724277745797,0.00018836,61305.0,61304.0,0.0009075]
[1724277745915,0.02318836,61305.0,61304.0,0.0009075]
[1724277746116,0.02718836,61305.0,61304.0,0.0009075]
[1724277746606,1.01078334,61305.0,61304.0,0.0009075]
[1724277746828,1.12848334,61305.0,61304.0,0.0009075]
[1724277747030,1.45472034,61305.0,61304.0,0.0009075]
[1724277747159,1.55472034,61305.0,61304.0,0.0009075]
[1724277748138,1.55072034,61305.0,61304.0,0.0009075]
[1724277748345,0.1297,61305.0,61304.0,0.0009075]
[1724277748553,0.0881,61305.0,61304.0,0.0009075]
[1724277748727,0.008,61305.0,61304.0,0.0009075]
[1724277748926,0.008,61305.0,61304.0,1.1017125]
[1724277749133,0.017,61305.0,61304.0,1.1017125]
[1724277749541,0.009,61305.0,61304.0,1.1017125]
[1724277749970,0.0110914,61308.0,61307.0,0.48934]
[1724277752132,0.0130914,61308.0,61307.0,0.48934]
[1724277753043,0.0130914,61308.0,61307.0,1.141794]
[1724277753478,0.0130914,61308.0,61307.0,1.230594]
[1724277754300,0.0130914,61308.0,61307.0,0.163113]
[1724277755086,0.0130914,61308.0,61307.0,0.48934]
[1724277755532,0.0130914,61308.0,61307.0,0.0009086]
[1724277756994,0.0130914,61308.0,61307.0,0.1640216]
[1724277757223,0.0130914,61308.0,61307.0,0.0009086]
[1724277757958,0.01327976,61308.0,61307.0,0.0009086]